Workbook

Sheet Kalkulačka
B2: Upozornenie: Pri zmene ceny balenia cigariet v intervale 2,9 po 3,8 Eur sa prepočet scenára 1 realizuje automaticky, zvyšné scenáre je vždy potrebné zaktualizovať tlačítkom na bunkách B18:B20! Pre správny výpočet musíte mať povolené makrá!
B4: Kalkukačka prepočtu vplyvu zmeny zdanenia cigariet do výslednej ceny cigariet (v Eur)
C5: Jednotky | D5: Vzorec | E5: 2016 | F5: 2017 | G5: 2017-2016 (v Eur) | H5: 2017 | I5: 2017-2016 (v Eur) | J5: 2017 | K5: 2017-2016 (v Eur) | L5: 2017 | M5: 2017-2016 (v Eur)
F6: Scenár 1: Bez zmeny predajnej ceny | H6: Scenár 2: Nezmenená cena bez dane | J6: Scenár 3: Cena zvýšená o násobok 10 centov | L6: Scenár 4: cena zvýšená o 2-násobok 10 centov
B7: (1) Špecifická SD | C7: Eur/1 000 ks | E7: 59.5 | F7: 61.8 | G7: - | H7: 61.8 | I7: - | J7: 61.8 | K7: - | L7: 61.8 | M7: -
B8: (2) Minimálna SD | C8: Eur/1 000 ks | E8: 91 | F8: 96.5 | G8: - | H8: 96.5 | I8: - | J8: 96.5 | K8: - | L8: 96.5 | M8: -
B9: (3) Ad valorem SD | C9: % | E9: 0.23 | F9: 0.23 | G9: - | H9: 0.23 | I9: - | J9: 0.23 | K9: - | L9: 0.23 | M9: -
B10: (4) Počet cigariet v krabičke | C10: ks | E10: 20 | F10: 20 | G10: - | H10: 20 | I10: - | J10: 20 | K10: - | L10: 20 | M10: -
B11: (5) Cena s daňou | C11: Eur | D11: 3 | E11: =VLOOKUP(D11,K22:L30,2) -> 3.1 | F11: =E11 -> 3.1 | G11: =F11-E11 -> 0 | H11: 3.176243094 | I11: =H11-E11 -> 0.07624309392 | J11: =ROUND(H11,1) -> 3.2 | K11: =J11-E11 -> 0.1 | L11: =J11+0.1 -> 3.3 | M11: =L11-E11 -> 0.2
B12: (6) Ad valorem sadzba SD | C12: Eur | D12: (3) * (5) | E12: =E9*E11 -> 0.713 | F12: =F9*F11 -> 0.713 | G12: =F12-E12 -> 0 | H12: =H9*H11 -> 0.7305359116 | I12: =H12-E12 -> 0.0175359116 | J12: =J9*J11 -> 0.736 | K12: =J12-E12 -> 0.023 | L12: =L9*L11 -> 0.759 | M12: =L12-E12 -> 0.046
B13: (7) Špecifická sadzba SD | C13: Eur | D13: (1) / 1000 * (4) | E13: =E7/1000*E10 -> 1.19 | F13: =F7/1000*F10 -> 1.236 | G13: 0.046 | H13: =H7/1000*H10 -> 1.236 | I13: 0.046 | J13: =J7/1000*J10 -> 1.236 | K13: 0.046 | L13: =L7/1000*L10 -> 1.236 | M13: 0.046
B14: (8) Kombinovaná SD | C14: Eur | D14: (6) + (7) | E14: =E12+E13 -> 1.903 | F14: =F12+F13 -> 1.949 | G14: 0.046 | H14: =H12+H13 -> 1.966535912 | I14: 0.0635359116 | J14: =J12+J13 -> 1.972 | K14: 0.069 | L14: =L12+L13 -> 1.995 | M14: 0.092
B15: (9) Minimálna SD | C15: Eur | D15: (2) / 1000 * (4) | E15: =E8/1000*E10 -> 1.82 | F15: =F8/1000*F10 -> 1.93 | G15: 0.11 | H15: =H8/1000*H10 -> 1.93 | I15: 0.11 | J15: =J8/1000*J10 -> 1.93 | K15: 0.11 | L15: =L8/1000*L10 -> 1.93 | M15: 0.11
B16: (10) Kombinovaná finálna SD | C16: Eur | D16: (8) alebo (9) ak (8) < (9) | E16: =MAX(E14,E15) -> 1.903 | F16: =MAX(F14,F15) -> 1.949 | G16: 0.046 | H16: =MAX(H14,H15) -> 1.966535912 | I16: 0.0635359116 | J16: =MAX(J14,J15) -> 1.972 | K16: 0.069 | L16: =MAX(L14,L15) -> 1.995 | M16: 0.092
B17: (11) DPH | C17: Eur | D17: (5) / (1+20%) * 20% | E17: =E11/(1+20%)*20% -> 0.5166666667 | F17: =F11/(1+20%)*20% -> 0.5166666667 | G17: 0 | H17: =H11/(1+20%)*20% -> 0.529373849 | I17: 0.01270718232 | J17: =J11/(1+20%)*20% -> 0.5333333333 | K17: 0.01666666667 | L17: =L11/(1+20%)*20% -> 0.55 | M17: 0.03333333333
B18: (12) Cena bez dane | C18: Eur | D18: (5) - (10) - (11) | E18: =E11-E16-E17 -> 0.6803333333 | F18: =F11-F16-F17 -> 0.6343333333 | G18: -0.046 | H18: =H11-H16-H17 -> 0.6803333333 | I18: 0 | J18: =J11-J16-J17 -> 0.6946666667 | K18: 0.01433333333 | L18: =L11-L16-L17 -> 0.755 | M18: 0.07466666667
L20: eur za krabičku | M20: %-ny podiel
L21: <2,9 | M21: 0.03847788856
K22: 1 | L22: 2.9 | M22: 0.1642918691
K23: 2 | L23: 3 | M23: 0.2274246662
K24: 3 | L24: 3.1 | M24: 0.3774904649
K25: 4 | L25: 3.2 | M25: 0.009190179606
K26: 5 | L26: 3.3 | M26: 0.05633420821
K27: 6 | L27: 3.4 | M27: 0.01623145877
K28: 7 | L28: 3.5 | M28: 0.008777016555
K29: 8 | L29: 3.7 | M29: 0.08582084223
K30: 9 | L30: 3.8 | M30: 0.01596140589
K31: 10 | L31: Spolu | M31: =SUM(M21:M30) -> 1
B33: Poznámky:
B34: 1) Výsledná spotrebiteľská cena cigariet tak ako aj v prípade iných druhov tovarov nezávisí len od zdanenia, ale aj samotnej cenotvorby, ktorá je v rukách výrobcov a distribútorov cigariet a ktorú definuje existujúca miera zdanenia na trhu.
B35: 2) Z dôvodu rozdielnej cenotvorby, konkurencie a už rozdielnej koncentrácie jednotlivých značiek cigariet v danom cenovom segmente bude na trhu dochádzať aj k rozdielnej reakcii na výslednú spotrebiteľskú cenu cigariet.
B36: 3) Zdanenie v prípade cigariet okrem dane z pridanej hodnoty pozostáva aj zo spotrebnej dane, ktorá je tvorená dvoma zložkami: špecifickou sadzbou (pevne stanovenou na počet ks) a ad-valorem sadzbou (závislou od ceny spotrebiteľského balenia).
B37: 4) Ako čítať scenáre?: | C37: Scenár 1: Scenár, ktorý predpokladá, že trh plne absorbuje zvýšenie sadzieb dane na úkor ceny bez dane (tj. dôjde k zníženiu hrubých marží výrobcov a distribútorov) a nedôjde k medziročnej zmene ceny
C38: Scenár 2: Predpoklad statického prepočtu zmien sadzieb dane, tj. nedôjde k zmene ceny bez dane a trh len v plnej miere pretransformuje zvýšenie sadzieb dane.
C39: Scenár 3: Scenár, ktorý predpokladá historické chovanie výraznej väčšiny trhu, keď akékoľvek zvýšenie sadzieb dane sa v konečnom dôsledku zaokrúhlilo na celých 10 eurocentov v prospech hrubých marží.
C40: Scenár 4: Scenár, ktorý predpokladá historické chovanie časti trhu, keď akékoľvek zvýšenie sadzieb dane sa v konečnom dôsledku zaokrúhlilo na ďalších 10 eurocentov výraznejšie v prospech hrubých marží.
